Cogmind - Beta 10.1 @@@ ROGUE MODE // 2020.09.25 @ 21:18:49 Player: Tmvn Result: Destroyed by G-67 Veteran with Electrolaser Performance ------------- Evolutions (6) 3000 Regions Visited (11) 2200 Robots Destroyed (48) 240 Value Destroyed (1711) 1711 Prototype IDs (8) 160 Alien Tech Used (0) 0 Bonus (240) 240 TOTAL SCORE: 7551 Bonus ------- Pacifist 200 Follower Combat Kills 40 Cogmind --------- Core Integrity 0/1150 Matter 204/300 Energy 84/100 System Corruption 7% Temperature Cool (0) Movement Core (50) Location -4/Factory Parts ------- > --- POWER (2) -------- (None) > --- PROPULSION (4) --- (None) > --- UTILITY (10) ----- Advanced Signal Interpreter > --- WEAPON (3) ------- (None) > --- INVENTORY (4) ---- Improved Gravmag System Combat Airjet Recoil Nullifier Advanced Assault Cannon Peak State ------------ > --- POWER ------------ Improved Deuterium Engine Angular Momentum Engine > --- PROPULSION ------- Improved Gravmag System Combat Airjet Combat Airjet Combat Airjet > --- UTILITY ---------- Large Storage Unit Weight Redist. System Improved Sensor Array Advanced Signal Interpreter Advanced ECM Suite Improved Light Armor Plating Improved Hardlight Generator Hacking Suite > --- WEAPON ----------- Gatling Laser Plasma Rifle Phase Cannon > --- INVENTORY -------- Improved Heat Sink Improved Cooling System Improved Armor Integrity Analyzer Hardened Light Armor Plating Arc Projector Heavy Ion Cannon Cooled Particle Cannon Gauss Rifle Advanced Assault Cannon [Rating: 70] Favorites ----------- Power Micro Nuclear Core Engine Angular Momentum Engine Power Core Micro Nuclear Core Reactor Quantum Reactor Propulsion Armored Wheel Leg Aluminum Leg Wheel Armored Wheel Hover Unit Combat Airjet Utility Hacking Suite Device Improved Cooling System Storage Large Storage Unit Processor Targeting Computer Hackware Hacking Suite Protection Hardened Light Armor Plating Weapon Minigun Energy Gun Heavy Laser Energy Cannon Cooled Particle Cannon Ballistic Gun Minigun Ballistic Cannon Light Cannon Launcher Mini Grenade Launcher Build | -11 -10 -9 -8 -7 -6 -6 -6 -5 -4 -4 -4 ------- Run | Scr Mat Mat Mat Fac Fac Ext Cet Fac Fac Was Fac Slots Evolved 12 | . . 2 2 2 2 . . 2 2 . . Power 1 | . . . . . 1 . . . . . . Propulsion 2 | . . . . . 1 . . 1 . . . Utility 8 | . . 1 2 2 . . . 1 2 . . Weapon 1 | . . 1 . . . . . . . . . Parts Attached 111 | 2 13 11 38 11 6 15 . 4 7 1 3 Power 19 | . 3 2 9 2 1 1 . . . 1 . Engine 12 | . 3 2 5 . 1 1 . . . . . Core 6 | . . . 4 2 . . . . . . . Reactor 1 | . . . . . . . . . . 1 . Propulsion 20 | 2 4 3 2 . 1 3 . 1 3 . 1 Treads . | . . . . . . . . . . . . Leg . | . . . . . . . . . . . . Wheel 11 | 2 4 2 2 . 1 . . . . . . Hover 9 | . . 1 . . . 3 . 1 3 . 1 Flight . | . . . . . . . . . . . . Utility 33 | . 2 2 12 3 2 7 . 2 1 . 2 Device 16 | . . 2 5 2 2 2 . 2 . . 1 Storage 2 | . 1 . 1 . . . . . . . . Processor 6 | . 1 . 2 . . 1 . . 1 . 1 Hackware 2 | . . . 2 . . . . . . . . Protection 7 | . . . 2 1 . 4 . . . . . Artifact . | . . . . . . . . . . . . Weapon 39 | . 4 4 15 6 2 4 . 1 3 . . Energy Gun 20 | . 2 3 8 3 2 2 . . . . . Energy Cannon 7 | . . . . 2 . 2 . 1 2 . . Ballistic Gun 10 | . 2 . 6 1 . . . . 1 . . Ballistic Cannon 1 | . . 1 . . . . . . . . . Launcher 1 | . . . 1 . . . . . . . . Special Weapon . | . . . . . . . . . . . . Impact Weapon . | . . . . . . . . . . . . Slashing Weapon . | . . . . . . . . . . . . Piercing Weapon . | . . . . . . . . . . . . Special Melee Weapon . | . . . . . . . . . . . . Unidentified Prototypes 4 | . . 1 1 1 1 . . . . . . Parts Lost 47 | . . . 22 2 . 7 1 . 13 2 . Power 10 | . . . 5 1 . 1 . . 2 1 . Propulsion 2 | . . . 2 . . . . . . . . Utility 17 | . . . 5 1 . 4 1 . 5 1 . Weapon 18 | . . . 10 . . 2 . . 6 . . Highest Loss Streak 10 | . . . 7 1 . 6 1 . 10 2 . Average Slot Usage (%) 85 | . 90 91 84 95 92 95 94 94 69 15 . Engine 5 | . 13 11 3 . 5 6 13 11 5 . . Core 3 | . . . 4 6 6 5 . . . . . Wheel 12 | . 24 10 17 15 20 2 . . . . . Hover 4 | . . 5 . . . 17 20 23 16 . . Device 15 | . . 9 13 23 25 22 14 17 14 . . Storage 7 | . 14 11 9 7 6 6 6 5 4 . . Processor 5 | . 10 11 8 . . . 6 5 7 8 . Hackware 4 | . . . 3 7 6 6 6 5 5 3 . Protection 4 | . . . . 10 6 6 6 5 3 . . Energy Gun 9 | . 12 14 12 5 6 8 13 11 5 . . Energy Cannon 2 | . . . . 8 . 4 6 5 4 . . Ballistic Gun 7 | . 13 11 10 7 6 3 . . . . . Naked Turns 69 | . . . . . . . . . . 13 56 Heaviest Build 70 | 13 41 46 54 51 55 67 61 70 70 20 1 Greatest Support 86 | 20 20 24 24 33 42 72 72 86 86 3 3 Greatest Overweight (x) 14 | . 13 14 2 2 1 1 . . . 6 . Average Overweight (x) . | . 1 2 1 1 1 . . . . 1 . Largest Inventory Capacity 18 | 6 14 12 18 10 10 10 10 10 10 4 4 Average Capacity 10 | 6 11 12 11 10 10 10 10 10 8 4 4 Most Carried 12 | 6 6 12 12 10 10 10 9 9 10 3 4 Average Carried 8 | 4 5 9 10 9 9 9 9 8 7 3 3 Final Capacity 12 | 6 12 12 10 10 10 10 10 10 4 4 4 Final Carried 12 | 4 6 12 9 10 10 9 9 9 3 3 4 Class Distribution -------------------- 40% | Mutant 25% | Tank 22% | Gunner 6% | Scavenger-Gunner Dominant Class ---------------- Mutant | -10/Materials Gunner | -9/Materials Gunner | -8/Materials Tank | -7/Factory Mutant | -6/Factory Tank | -6/Extension Skirmisher | -6/Cetus Skirmisher | -5/Factory Mutant | -4/Factory Mutant | -4/Waste Mutant | -4/Factory Resources | -11 -10 -9 -8 -7 -6 -6 -6 -5 -4 -4 -4 ----------- Run | Scr Mat Mat Mat Fac Fac Ext Cet Fac Fac Was Fac Matter Collected 1433 | 200 . 339 481 235 . 178 . . . . . Remotely . | . . . . . . . . . . . . Salvage Created 2024 | . . 516 798 443 . 184 . . 83 . . Parts 86 | . . 20 38 13 . 11 . . 4 . . Haulers Intercepted 1 | . . 1 . . . . . . . . . Recyclers Shooed 1 | . . . 1 . . . . . . . . Parts Field Recycled . | . . . . . . . . . . . . Retrieved Matter . | . . . . . . . . . . . . Parts Self-Destructed . | . . . . . . . . . . . . Prevented . | . . . . . . . . . . . . Kills | -11 -10 -9 -8 -7 -6 -6 -6 -5 -4 -4 -4 ------- Run | Scr Mat Mat Mat Fac Fac Ext Cet Fac Fac Was Fac Combat Hostiles Destroyed 43 | . . 8 21 8 . 5 . . 1 . . Guns 21 | . . 4 12 1 . 3 . . 1 . . Cannons 12 | . . 3 . 7 . 2 . . . . . AOE 9 | . . . 9 . . . . . . . . Classes Destroyed 9 | . . 5 3 . . 1 . . . . . Builder 1 | . . . 1 . . . . . . . . Hauler 1 | . . 1 . . . . . . . . . Recycler 2 | . . 2 . . . . . . . . . Watcher 1 | . . 1 . . . . . . . . . Swarmer 11 | . . . 8 . . 3 . . . . . Grunt 24 | . . 7 10 7 . . . . . . . Duelist 2 | . . . 1 1 . . . . . . . Sentry 5 | . . 1 2 . . 1 . . 1 . . Hunter 1 | . . . . . . 1 . . . . . Best Kill Streak 6 | . . 3 6 3 . 3 . . 1 . . Combat Bots Only 6 | . . 3 6 3 . 3 . . 1 . . Max Kills in Single Turn 4 | . . 1 4 1 . 1 . . 1 . . Gunslinging 1 | . . . 1 . . . . . . . . Exploded 4 | . . . 4 . . . . . . . . Melee . | . . . . . . . . . . . . Uniques/NPCs Destroyed . | . . . . . . . . . . . . Combat | -11 -10 -9 -8 -7 -6 -6 -6 -5 -4 -4 -4 -------- Run | Scr Mat Mat Mat Fac Fac Ext Cet Fac Fac Was Fac Damage Taken 6374 | . 21 411 1710 529 59 1201 51 . 2054 144 194 Core 1903 | . . 172 248 50 24 248 . . 823 144 194 Absorbed by Shields 32 | . . . . . . . . . 32 . . Core Remaining (%) 81 | 100 100 57 54 92 . . 68 100 . . . Volleys Fired 117 | . . 27 52 24 . 9 . . 5 . . Largest 3 | . . 3 3 3 . 3 . . 3 . . Hottest 220 | . . 141 146 120 . 220 . . 200 . . Shots Fired 306 | . . 81 115 67 . 29 . . 14 . . Gun 235 | . . 63 108 40 . 19 . . 5 . . Cannon 64 | . . 18 . 27 . 10 . . 9 . . Launcher 7 | . . . 7 . . . . . . . . Special . | . . . . . . . . . . . . Kinetic 129 | . . 45 50 24 . 6 . . 4 . . Thermal 115 | . . 36 15 31 . 23 . . 10 . . Explosive 7 | . . . 7 . . . . . . . . Electromagnetic 55 | . . . 43 12 . . . . . . . Robot Hit Streak 27 | . . 8 27 19 . 6 . . 8 . . Robot Miss Streak 4 | . . 3 4 3 . 2 . . 1 . . Penetration Max . | . . . . . . . . . . . . Secondary Targets 5 | . . . 5 . . . . . . . . Max Gunslinging Chain 2 | . . . 2 . . . . . . . . Shots Hit Robots 211 | . . 52 80 52 . 17 . . 10 . . Core Hits 99 | . . 20 46 17 . 10 . . 6 . . Critical Hits 1 | . . 1 . . . . . . . . . Critical Kills 1 | . . 1 . . . . . . . . . Critical Parts Destroyed . | . . . . . . . . . . . . Melee Attacks . | . . . . . . . . . . . . Impact . | . . . . . . . . . . . . Slashing . | . . . . . . . . . . . . Piercing . | . . . . . . . . . . . . Sneak Attacks . | . . . . . . . . . . . . Combat Hostiles . | . . . . . . . . . . . . Follow-up Attacks . | . . . . . . . . . . . . Damage Inflicted 4370 | . . 772 1657 1157 . 492 . . 292 . . Guns 2411 | . . 599 917 505 . 294 . . 96 . . Cannons 1114 | . . 161 . 651 . 132 . . 170 . . Explosions 729 | . . . 729 . . . . . . . . Melee . | . . . . . . . . . . . . Ramming 116 | . . 12 11 1 . 66 . . 26 . . Kinetic 1152 | . . 380 411 217 . 72 . . 72 . . Thermal 1910 | . . 380 274 708 . 354 . . 194 . . Explosive 597 | . . . 597 . . . . . . . . Electromagnetic 595 | . . . 364 231 . . . . . . . Impact . | . . . . . . . . . . . . Slashing . | . . . . . . . . . . . . Piercing . | . . . . . . . . . . . . Highest Corruption 7 | . . . . . 5 5 5 . 1 7 7 Average Corruption 5 | . . . . . 5 5 5 . 1 6 7 Corruption Purged . | . . . . . . . . . . . . Effects 21 | . . . . . 5 9 1 . . 4 2 Message Errors 4 | . . . . . . 1 . . . 3 . Matter Fused 3 | . . . . . 1 1 . . . 1 . Heat Flow Errors 3 | . . . . . 2 1 . . . . . Energy Discharges 2 | . . . . . . 1 . . . . 1 Parts Rejected 1 | . . . . . . 1 . . . . . Data Loss (minor) 6 | . . . . . 2 2 1 . . . 1 Misfires 2 | . . . . . . 2 . . . . . Overload Shots . | . . . . . . . . . . . . Overflow Damage 53 | . . . 30 . . 23 . . . . . Projectiles . | . . . . . . . . . . . . Explosions 30 | . . . 30 . . . . . . . . Melee 23 | . . . . . . 23 . . . . . Knockbacks 3 | . . 2 . . . 1 . . . . . Impact 1 | . . . . . . 1 . . . . . Kinetic 2 | . . 2 . . . . . . . . . Secondary . | . . . . . . . . . . . . Self-Inflicted Damage 219 | . . 6 171 . . 32 . . 10 . . Shots 4 | . . . 4 . . . . . . . . Rammed 18 | . . 1 3 1 . 2 . . 11 . . Targets Rammed 18 | . . 1 3 1 . 2 . . 11 . . Kicked . | . . . . . . . . . . . . Crushed . | . . . . . . . . . . . . Highest Temperature 530 | . . 530 486 . 183 190 . . 147 . . Average Temperature 132 | . . 165 131 . 95 85 . . 70 . . Received Heat Transfer 1446 | . 12 156 747 231 . 204 9 . 45 . 42 Effects 5 | . . 3 2 . . . . . . . . Energy Bleed 3 | . . 1 2 . . . . . . . . Short Circuit 1 | . . 1 . . . . . . . . . Damage (core) 1 | . . 1 . . . . . . . . . Siege Activations . | . . . . . . . . . . . . Robots Corrupted . | . . . . . . . . . . . . Combat Hostiles . | . . . . . . . . . . . . Parts Fried 3 | . . . 1 2 . . . . . . . Impact Corruptions 1 | . . . . . . 1 . . . . . Robots Melted 1 | . . 1 . . . . . . . . . Combat Hostiles 1 | . . 1 . . . . . . . . . Parts Melted 8 | . . 3 . 1 . 3 . . 1 . . Heat Transferred 3502 | . . 962 483 1036 . 749 . . 272 . . Parts Sabotaged . | . . . . . . . . . . . . Parts Stolen . | . . . . . . . . . . . . Parts Stripped . | . . . . . . . . . . . . Power Chain Reactions 2 | . . . 2 . . . . . . . . Missiles Intercepted . | . . . . . . . . . . . . Alert | -11 -10 -9 -8 -7 -6 -6 -6 -5 -4 -4 -4 ------- Run | Scr Mat Mat Mat Fac Fac Ext Cet Fac Fac Was Fac Peak Influence 320 | . 65 271 320 205 39 148 44 18 62 30 14 Initial 64 | . . 27 32 64 39 18 44 18 8 1 14 Average 92 | . 20 124 179 80 39 77 37 18 26 4 14 Maximum Alert Level 1 | . . 1 1 1 . . . . . . . Low Security (%) 87 | 100 100 88 57 94 100 100 100 100 100 100 100 Level 1 12 | . . 11 42 5 . . . . . . . Level 2 . | . . . . . . . . . . . . Level 3 . | . . . . . . . . . . . . Level 4 . | . . . . . . . . . . . . Level 5 . | . . . . . . . . . . . . High Security . | . . . . . . . . . . . . Max Security . | . . . . . . . . . . . . Squads Dispatched 6 | . . 1 . 1 1 1 . . 2 . . Investigation . | . . . . . . . . . . . . Extermination 2 | . . . . . 1 . . . 1 . . Reinforcement 4 | . . 1 . 1 . 1 . . 1 . . Assault . | . . . . . . . . . . . . Garrison . | . . . . . . . . . . . . Intercept . | . . . . . . . . . . . . Construction Impeded . | . . . . . . . . . . . . Haulers Reinforced . | . . . . . . . . . . . . Stealth | -11 -10 -9 -8 -7 -6 -6 -6 -5 -4 -4 -4 --------- Run | Scr Mat Mat Mat Fac Fac Ext Cet Fac Fac Was Fac Distress Signals 7 | . . 3 1 . . 1 1 . 1 . . Communications Jammed . | . . . . . . . . . . . . Distress Signals . | . . . . . . . . . . . . Times Spotted 106 | . 5 16 30 16 3 14 4 . 9 6 3 Peak Tracking Total 8 | . 3 5 8 3 2 4 5 . 5 6 3 Tactical Retreats 9 | . . . 4 2 1 1 . . 1 . . Traps | -11 -10 -9 -8 -7 -6 -6 -6 -5 -4 -4 -4 ------- Run | Scr Mat Mat Mat Fac Fac Ext Cet Fac Fac Was Fac Traps Triggered 8 | . 4 . . . . 2 . . 1 . 1 Indirectly . | . . . . . . . . . . . . Trap Hack Attempts . | . . . . . . . . . . . . Triggered . | . . . . . . . . . . . . Disarmed . | . . . . . . . . . . . . Reprogrammed . | . . . . . . . . . . . . Reused . | . . . . . . . . . . . . Traps Extracted . | . . . . . . . . . . . . Installed . | . . . . . . . . . . . . Triggered . | . . . . . . . . . . . . Machines | -11 -10 -9 -8 -7 -6 -6 -6 -5 -4 -4 -4 ---------- Run | Scr Mat Mat Mat Fac Fac Ext Cet Fac Fac Was Fac Machines Disabled 4 | . . . 2 . . 2 . . . . . Max in Single Turn 1 | . . . 1 . . 1 . . . . . Machines Sabotaged . | . . . . . . . . . . . . Garrisons Compromised . | . . . . . . . . . . . . Overloaded Fab Kills . | . . . . . . . . . . . . Fab Network Shutdowns . | . . . . . . . . . . . . Hacking | -11 -10 -9 -8 -7 -6 -6 -6 -5 -4 -4 -4 --------- Run | Scr Mat Mat Mat Fac Fac Ext Cet Fac Fac Was Fac Machines Accessed 15 | . 3 1 . 3 . 8 . . . . . Terminals 15 | . 3 1 . 3 . 8 . . . . . Fabricators . | . . . . . . . . . . . . Repair Stations . | . . . . . . . . . . . . Recycling Units . | . . . . . . . . . . . . Scanalyzers . | . . . . . . . . . . . . Garrison Access . | . . . . . . . . . . . . Total Hacks 26 | . 4 2 . 4 . 16 . . . . . Successful 18 | . 4 2 . 2 . 10 . . . . . Failed 8 | . . . . 2 . 6 . . . . . Catastrophic 1 | . . . . . . 1 . . . . . Database Lockouts . | . . . . . . . . . . . . Manual . | . . . . . . . . . . . . Terminals 26 | . 4 2 . 4 . 16 . . . . . Fabricators . | . . . . . . . . . . . . Repair Stations . | . . . . . . . . . . . . Recycling Units . | . . . . . . . . . . . . Scanalyzers . | . . . . . . . . . . . . Garrison Access . | . . . . . . . . . . . . Terminal Hacks 18 | . 4 2 . 2 . 10 . . . . . Record 1 | . . . . 1 . . . . . . . Prototype ID Bank 2 | . 1 . . . . 1 . . . . . Open Door 2 | . . . . . . 2 . . . . . Branch Access Points 1 | . . 1 . . . . . . . . . Terminal Index 1 | . . . . . . 1 . . . . . Alert Level 1 | . . 1 . . . . . . . . . Locate Traps 3 | . 1 . . . . 2 . . . . . Dispatch Records 3 | . . . . 1 . 2 . . . . . Security Status 1 | . . . . . . 1 . . . . . Extermination Status 1 | . . . . . . 1 . . . . . Hauler Manifests 1 | . 1 . . . . . . . . . . Zone Layout 1 | . 1 . . . . . . . . . . Fabricator Hacks . | . . . . . . . . . . . . Repair Station Hacks . | . . . . . . . . . . . . Recycling Unit Hacks . | . . . . . . . . . . . . Scanalyzer . | . . . . . . . . . . . . Garrison Access Hacks . | . . . . . . . . . . . . Unauthorized Hacks . | . . . . . . . . . . . . Terminals . | . . . . . . . . . . . . Fabricators . | . . . . . . . . . . . . Repair Stations . | . . . . . . . . . . . . Recycling Units . | . . . . . . . . . . . . Scanalyzers . | . . . . . . . . . . . . Garrison Access . | . . . . . . . . . . . . Data Cores Recovered . | . . . . . . . . . . . . Used . | . . . . . . . . . . . . Hacking Detections 7 | . . . . . . 7 . . . . . Full Trace Events . | . . . . . . . . . . . . Feedback Events . | . . . . . . . . . . . . Feedback Blocked . | . . . . . . . . . . . . Robot Schematics Acquired . | . . . . . . . . . . . . Robots Built . | . . . . . . . . . . . . Matter . | . . . . . . . . . . . . Time . | . . . . . . . . . . . . Total Robot Build Rating . | . . . . . . . . . . . . Part Schematics Acquired . | . . . . . . . . . . . . Parts Built . | . . . . . . . . . . . . Matter . | . . . . . . . . . . . . Time . | . . . . . . . . . . . . Total Part Build Rating . | . . . . . . . . . . . . Parts Repaired . | . . . . . . . . . . . . Time . | . . . . . . . . . . . . Parts Recycled . | . . . . . . . . . . . . Recycled Matter . | . . . . . . . . . . . . Retrieved Matter . | . . . . . . . . . . . . Retrieved Components . | . . . . . . . . . . . . Parts Scanalyzed . | . . . . . . . . . . . . Part Schematics Acquired . | . . . . . . . . . . . . Parts Damaged . | . . . . . . . . . . . . Bothacking | -11 -10 -9 -8 -7 -6 -6 -6 -5 -4 -4 -4 ------------ Run | Scr Mat Mat Mat Fac Fac Ext Cet Fac Fac Was Fac Used RIF Installer . | . . . . . . . . . . . . Robots Hacked . | . . . . . . . . . . . . Non-combat . | . . . . . . . . . . . . Combat . | . . . . . . . . . . . . Robot Hacks Applied . | . . . . . . . . . . . . Relay Couplers Released . | . . . . . . . . . . . . Robots Rewired . | . . . . . . . . . . . . Allies Hacked . | . . . . . . . . . . . . Hacks Repelled . | . . . . . . . . . . . . Allies | -11 -10 -9 -8 -7 -6 -6 -6 -5 -4 -4 -4 -------- Run | Scr Mat Mat Mat Fac Fac Ext Cet Fac Fac Was Fac Total Allies 2 | . . . . . . 2 . . . . . Largest Group 1 | . . . . . . 1 . . . . . Highest-Rated Group 31 | . . . . . . 31 . . . . . Highest-Rated Ally 31 | . . . . . . 31 . . . . . Total Orders . | . . . . . . . . . . . . Ally Attacks 5 | . . . . . . 5 . . . . . Total Damage 85 | . . . . . . 85 . . . . . Kills 1 | . . . . . . 1 . . . . . Allies Corrupted . | . . . . . . . . . . . . Allies Melted . | . . . . . . . . . . . . Intel | -11 -10 -9 -8 -7 -6 -6 -6 -5 -4 -4 -4 ------- Run | Scr Mat Mat Mat Fac Fac Ext Cet Fac Fac Was Fac Robot Analysis Total . | . . . . . . . . . . . . Derelict Logs Recovered . | . . . . . . . . . . . . Drone Launches . | . . . . . . . . . . . . Drone Recoveries . | . . . . . . . . . . . . Exploration | -11 -10 -9 -8 -7 -6 -6 -6 -5 -4 -4 -4 ------------- Run | Scr Mat Mat Mat Fac Fac Ext Cet Fac Fac Was Fac Turns Passed 3544 | 5 265 436 852 721 274 453 39 71 254 111 63 Spaces Moved 3089 | 1 235 180 628 606 263 476 54 103 331 99 113 Core 290 | . 3 3 . . . . . . 72 99 113 Treads . | . . . . . . . . . . . . Legs . | . . . . . . . . . . . . Wheels 1918 | 1 232 146 628 606 263 42 . . . . . Hover 881 | . . 31 . . . 434 54 103 259 . . Flight . | . . . . . . . . . . . . Fastest Speed 50 | 80 80 100 100 90 100 72 72 63 50 50 50 Average Speed 93 | 80 104 176 101 101 100 74 72 63 60 110 50 Slowest Speed 750 | 80 700 750 110 110 100 160 72 63 63 350 50 Overloaded Moves . | . . . . . . . . . . . . Propulsion Burnouts . | . . . . . . . . . . . . Robots Hopped . | . . . . . . . . . . . . Cave-ins Triggered . | . . . . . . . . . . . . Exploration Rate (%) 25 | 2 37 19 41 13 8 70 23 2 6 79 4 Regions Visited 11 Branch Regions 2 Pre-discovered Areas . | . . . . . . . . . . . . Known Exits Taken 3 | . . . . . . 1 1 1 . . . Unknown Exits Taken 6 | 1 1 1 1 1 1 . . . . . . Scrap Searched . | . . . . . . . . . . . . Spaces Dug . | . . . . . . . . . . . . Terrain Destroyed 52 | . . . 49 1 . . . . 2 . . Melee . | . . . . . . . . . . . . Projectile 3 | . . . . 1 . . . . 2 . . AOE 49 | . . . 49 . . . . . . . . Terrain Rammed . | . . . . . . . . . . . . Walls Destroyed . | . . . . . . . . . . . . Machines Disabled . | . . . . . . . . . . . . Actions | -11 -10 -9 -8 -7 -6 -6 -6 -5 -4 -4 -4 --------- Run | Scr Mat Mat Mat Fac Fac Ext Cet Fac Fac Was Fac Total 3494 | 6 249 240 747 669 274 554 53 107 376 99 120 Wait 55 | . . 1 3 15 . 20 . . 16 . . Move 3079 | . 234 179 627 605 262 475 53 102 331 98 113 Hop . | . . . . . . . . . . . . Pick Up 28 | . 1 8 7 3 . 7 . 1 . . 1 Fast Attach 67 | . 13 6 24 6 5 8 . 1 1 1 2 Attach 29 | 2 . 1 11 2 1 6 . 2 3 . 1 Detach 22 | 2 1 3 6 2 3 2 . . 1 . 2 Swap 15 | . . 4 3 3 . 1 . 1 3 . . Drop 48 | 2 . 10 11 8 3 8 . . 5 . 1 Fire 117 | . . 27 52 24 . 9 . . 5 . . Melee . | . . . . . . . . . . . . Ram 18 | . . 1 3 1 . 2 . . 11 . . Kick . | . . . . . . . . . . . . Crush . | . . . . . . . . . . . . Escape Stasis 16 | . . . . . . 16 . . . . . Rewire . | . . . . . . . . . . . . Trap . | . . . . . . . . . . . . Miscellaneous . | . . . . . . . . . . . . Route ------- -11/Scrapyard -10/Materials (discovered 2 exits: *Mat x2) -9/Materials (discovered 4 exits: [*Mat] / Min / Sto x2) -8/Materials -7/Factory -6/Factory -6/Extension (discovered 2 exits: *Fac / *Cet) -6/Cetus -5/Factory -4/Factory -4/Waste -4/Factory History --------- Turn | Location | Event 6 | -11/Scrapyard | Discovered new exit (range 0) 6 | -11/Scrapyard | Entered Materials 205 | -10/Materials | Discovered new exit (range 4) 256 | -10/Materials | Discovered new exit (range 15) 271 | -10/Materials | Entered another Materials area 271 | -9/Materials | Evolved 2 slots: Utility x1, Weapon x1 573 | -9/Materials | Build established: Gunner 670 | -9/Materials | Discovered new exit (range 4) 693 | -9/Materials | Identified exit to Mines 693 | -9/Materials | Identified exit to Storage 707 | -9/Materials | Entered another Materials area 707 | -8/Materials | Evolved 2 slots: Utility x2 981 | -8/Materials | Lost 7 parts (2p1u4w) 1117 | -8/Materials | Lost 7 parts (3p2u2w) 1314 | -8/Materials | Lost 7 parts (2n2u3w) 1384 | -8/Materials | Discovered new exit (range 15) 1559 | -8/Materials | Entered Factory 1559 | -7/Factory | Evolved 2 slots: Utility x2 2158 | -7/Factory | Discovered new exit (range 7) 2196 | -7/Factory | Build established: Tank 2280 | -7/Factory | Entered another Factory area 2280 | -6/Factory | Evolved 2 slots: Power x1, Propulsion x1 2380 | -6/Factory | Discovered new exit (range 10) 2478 | -6/Factory | Spotted B-75 Beast 2554 | -6/Factory | Entered Extension 2580 | -6/Extension | Build established: Mutant 2694 | -6/Extension | Rescued a captive Derelict 2782 | -6/Extension | Spotted B-75 Beast 2838 | -6/Extension | Spotted B-75 Beast 2864 | -6/Extension | Rescued a captive Derelict 2882 | -6/Extension | Lost 6 parts (4u2w) 2936 | -6/Extension | Build established: Tank 2996 | -6/Extension | Discovered new exit (range 10) 2996 | -6/Extension | Discovered new exit (range 6) 3006 | -6/Extension | Identified exit to Cetus 3007 | -6/Extension | Entered Cetus 3018 | -6/Cetus | Spotted Cetus Guard 3018 | -6/Cetus | Spotted Cetus Guard 3018 | -6/Cetus | Spotted Cetus Guard 3035 | -6/Cetus | Discovered new exit (range 16) 3045 | -6/Cetus | Identified exit to Factory 3046 | -6/Cetus | Entered Factory 3046 | -5/Factory | Evolved 2 slots: Propulsion x1, Utility x1 3108 | -5/Factory | Discovered new exit (range 9) 3112 | -5/Factory | Identified exit to Factory 3117 | -5/Factory | Entered another Factory area 3117 | -4/Factory | Evolved 2 slots: Utility x2 3258 | -4/Factory | Lost 3 parts (1p1u1w) 3340 | -4/Factory | Core integrity fell below 50% 3370 | -4/Factory | Lost 10 parts (1p4u5w) 3371 | -4/Factory | Sucked down chute 3371 | -4/Factory | Entered Waste 3386 | -4/Waste | EMP discharged 3391 | -4/Waste | Spotted C-40 Crusher 3433 | -4/Waste | Spotted C-40 Crusher 3449 | -4/Waste | Crushed by Compactor (1 part destroyed, 1 dropped) 3453 | -4/Waste | Spotted C-40 Crusher 3459 | -4/Waste | Spotted C-40 Crusher 3465 | -4/Waste | Spotted C-40 Crusher 3469 | -4/Waste | Crushed by Compactor (1 part destroyed, 1 dropped) 3470 | -4/Waste | Spotted C-40 Crusher 3474 | -4/Waste | Core integrity fell below 20% 3475 | -4/Waste | Discovered new exit (range 16) 3482 | -4/Waste | Entered Factory 3541 | -4/Factory | Build established: Mutant 3545 | -4/Factory | Destroyed by G-67 Veteran with Electrolaser Last Messages --------------- 03451_ L>L2R/GRG#ZPHXLQ3HKC/:RRGYY%12ANF4RZHAU 03466_ 986=WLZE3X